fUST/lending_fUST_20240811
["ID","MTS","AMOUNT","RATE_DAILY","PERIOD"]
[334632127,1723367433536,-5240.178669,0.00018773,2]
[334632128,1723367433551,-150.112233,0.000188,2]
[334632129,1723367433561,-4341.63613023,0.00018813,2]
[334632130,1723367433575,-30984.01229715,0.00018813,2]
[334632131,1723367433584,-480.569976,0.00018813,2]
[334632132,1723367433595,-480.569976,0.00018813,2]
[334632133,1723367433604,-167.001877,0.00018813,2]
[334632134,1723367433613,-167.001877,0.00018813,2]
[334632135,1723367433623,-151.0,0.00018813,2]
[334632136,1723367433632,-151.0,0.00018813,2]
[334632137,1723367433642,-151.0,0.00018813,2]
[334632138,1723367433652,-452.48,0.00018813,2]
[334632139,1723367433662,-452.48,0.00018813,2]
[334632140,1723367433672,-238.618087,0.00018813,2]
[334632141,1723367433682,-238.618087,0.00018813,2]
[334632142,1723367433691,-650.678465,0.00018813,2]
[334632143,1723367433700,-650.678465,0.00018813,2]
[334632144,1723367433709,-151.0,0.00018813,2]
[334632145,1723367433719,-370.662299,0.00018813,2]
[334632146,1723367433728,-370.662299,0.00018813,2]
[334632147,1723367433738,-263.30921,0.00018813,2]
[334632148,1723367433747,-263.30921,0.00018813,2]
[334632149,1723367433757,-151.0,0.00018813,2]
[334632150,1723367433766,-641.954911,0.00018813,2]
[334632151,1723367433775,-641.954911,0.00018813,2]
[334632152,1723367433784,-151.0,0.00018813,2]
[334632153,1723367433798,-151.0,0.00018813,2]
[334632154,1723367433807,-660.536962,0.00018813,2]
[334632155,1723367433816,-151.0,0.00018813,2]
[334632156,1723367433826,-660.536962,0.00018813,2]
[334632157,1723367433835,-215.122693,0.00018813,2]
[334632158,1723367433845,-215.122693,0.00018813,2]
[334632159,1723367433854,-151.0,0.00018813,2]
[334632160,1723367433864,-151.0,0.00018813,2]
[334632161,1723367433873,-151.0,0.00018813,2]
[334632162,1723367433882,-151.0,0.00018813,2]
[334632163,1723367433892,-151.0,0.00018813,2]
[334632164,1723367433901,-1644.63563966,0.00018825,7]
[334632165,1723367433911,-2710.33053727,0.00018899,2]
[334632166,1723367433920,-49399.59999012,0.000189,2]
[334632170,1723367438174,-201.64749152,0.00015744,2]
[334632171,1723367438183,-404.08727484,0.00015746,2]
[334632172,1723367438193,-1109.04434069,0.00015851,2]
[334632173,1723367438206,-9651.03918107,0.00018182,2]
[334632174,1723367438215,-699.50543538,0.00018182,2]
[334632175,1723367438224,-1384.13048712,0.00018845,2]
[334632176,1723367438234,-35559.22748748,0.000189,2]
[334632177,1723367438244,-151.0,0.000189,2]
[334632178,1723367438253,-186.184626,0.000189,2]
[334632179,1723367438263,-186.184626,0.000189,2]
[334632180,1723367438272,-151.0,0.000189,2]
[334632181,1723367438281,-151.0,0.000189,2]
[334632182,1723367438291,-438.868445,0.000189,2]
[334632183,1723367438303,-438.868445,0.000189,2]
[334632184,1723367438312,-151.0,0.000189,2]
[334632185,1723367438322,-480.569976,0.000189,2]
[334632186,1723367438331,-480.569976,0.000189,2]
[334632188,1723367438340,-167.001877,0.000189,2]
[334632190,1723367438351,-167.001877,0.000189,2]
[334632192,1723367438360,-151.0,0.000189,2]
[334632194,1723367438369,-151.0,0.000189,2]
[334632196,1723367438378,-151.0,0.000189,2]
[334632197,1723367438387,-452.48,0.000189,2]
[334632198,1723367438397,-452.48,0.000189,2]
[334632199,1723367438407,-238.618087,0.000189,2]
[334632200,1723367438416,-238.618087,0.000189,2]
[334632201,1723367438425,-650.678465,0.000189,2]
[334632202,1723367438591,-650.678465,0.000189,2]
[334632203,1723367438605,-156.731533,0.000189,2]
[334632204,1723367438614,-370.662299,0.000189,2]
[334632205,1723367438623,-370.662299,0.000189,2]
[334632206,1723367438632,-263.30921,0.000189,2]
[334632207,1723367438642,-151.0,0.000189,2]
[334632208,1723367438651,-263.30921,0.000189,2]
[334632209,1723367438660,-641.954911,0.000189,2]
[334632210,1723367438670,-641.954911,0.000189,2]
[334632211,1723367438679,-151.0,0.000189,2]
[334632212,1723367438688,-151.0,0.000189,2]
[334632213,1723367438698,-660.536962,0.000189,2]
[334632214,1723367438708,-151.0,0.000189,2]
[334632215,1723367438718,-660.536962,0.000189,2]
[334632216,1723367438727,-215.122693,0.000189,2]
[334632217,1723367438736,-215.122693,0.000189,2]
[334632218,1723367438746,-151.0,0.000189,2]
[334632219,1723367438756,-151.0,0.000189,2]
[334632220,1723367438765,-151.0,0.000189,2]
[334632221,1723367438774,-151.0,0.000189,2]
[334632222,1723367438783,-151.0,0.000189,2]
[334632223,1723367438792,-461.529055,0.00018904,2]
[334632224,1723367438803,-1612.06535955,0.00018921,2]
[334632225,1723367438813,-1765.03360075,0.00018921,2]
[334632226,1723367438821,-1364.59246336,0.00018921,2]
[334632227,1723367438831,-153.0,0.0001893,2]
[334632228,1723367438839,-153.0,0.0001893,2]
[334632229,1723367438850,-153.0,0.0001893,2]
[334632230,1723367438859,-153.0,0.0001893,2]
[334632231,1723367438869,-153.0,0.0001893,2]
[334632232,1723367438878,-153.0,0.0001893,2]
[334632233,1723367438887,-153.0,0.0001893,2]
[334632234,1723367438896,-153.0,0.0001893,2]
[334632235,1723367438906,-153.0,0.0001893,2]
[334632236,1723367438915,-153.0,0.0001893,2]
[334632237,1723367438925,-153.0,0.0001893,2]
[334632238,1723367438933,-153.0,0.0001893,2]
[334632239,1723367438942,-153.0,0.00018931,2]
[334632240,1723367438952,-153.0,0.00018931,2]
[334632241,1723367438962,-153.0,0.00018931,2]
[334632242,1723367438971,-153.0,0.00018931,2]
[334632243,1723367438982,-153.0,0.00018931,2]
[334632244,1723367438990,-153.0,0.00018931,2]
[334632245,1723367438999,-2126.37973248,0.00018945,2]
[334632246,1723367439009,-277.43269753,0.00018945,2]
[334632247,1723367439018,-846.23163308,0.0001895,2]
[334632248,1723367439027,-816.94684465,0.0001895,3]
[334632249,1723367439037,-2164.45800918,0.00018969,2]
[334632250,1723367439047,-168.59675648,0.00018976,2]
[334632251,1723367439063,-196.63865106,0.00018979,2]
[334632252,1723367439076,-196.63865106,0.00018979,2]
[334632253,1723367439086,-203.13717281,0.00018979,2]
[334632254,1723367439095,-225.26765097,0.00018979,2]
[334632255,1723367439104,-522.80309354,0.00018979,2]
[334632256,1723367439114,-151.0,0.00018989,2]
[334632257,1723367439124,-438.868445,0.00018989,2]
[334632258,1723367439136,-438.868445,0.00018989,2]
[334632259,1723367439146,-370.662299,0.00018989,2]
[334632260,1723367439157,-370.662299,0.00018989,2]
[334632261,1723367439166,-263.30921,0.00018989,2]
[334632262,1723367439176,-263.30921,0.00018989,2]
[334632263,1723367439186,-641.954911,0.00018989,2]
[334632264,1723367439195,-641.954911,0.00018989,2]
[334632265,1723367439208,-151.0,0.00018989,2]
[334632266,1723367439217,-151.0,0.00018989,2]
[334632267,1723367439227,-301.25996446,0.00018989,2]
[334632268,1723367439237,-203.5066412,0.00018989,2]
[334632269,1723367439248,-728.15079492,0.00018989,2]
[334632270,1723367439258,-1000.0,0.00019,2]
[334632271,1723367439267,-9430.85260519,0.00019,2]
[334632272,1723367439277,-17279.03294824,0.00019,2]
[334632273,1723367439287,-186.184626,0.00019,2]
[334632274,1723367439296,-186.184626,0.00019,2]
[334632275,1723367439310,-151.0,0.00019,2]
[334632276,1723367439320,-480.569976,0.00019,2]
[334632277,1723367439330,-480.569976,0.00019,2]
[334632278,1723367439339,-167.001877,0.00019,2]
[334632279,1723367439349,-167.001877,0.00019,2]
[334632280,1723367439359,-151.0,0.00019,2]
[334632281,1723367439368,-151.0,0.00019,2]
[334632282,1723367439379,-151.0,0.00019,2]
[334632283,1723367439388,-452.48,0.00019,2]
[334632284,1723367439397,-452.48,0.00019,2]
[334632285,1723367439406,-238.618087,0.00019,2]
[334632286,1723367439416,-238.618087,0.00019,2]
[334632287,1723367439426,-650.678465,0.00019,2]
[334632288,1723367439446,-650.678465,0.00019,2]
[334632289,1723367439457,-250.0,0.00019041,2]
[334632290,1723367439468,-587.0,0.00019049,2]
[334632291,1723367439478,-186.3613724,0.000191,2]
[334632292,1723367439487,-151.0,0.00019102,2]
[334632293,1723367439497,-151.0,0.00019115,2]
[334632294,1723367439507,-151.0,0.00019115,2]
[334632295,1723367439517,-151.0,0.00019115,2]
[334632296,1723367439527,-7457.9870484,0.00019115,2]
[334632297,1723367439537,-2993.60033153,0.00019128,2]
[334632298,1723367439547,-150.01,0.00019128,2]
[334632299,1723367439568,-660.536962,0.00019128,2]
[334632300,1723367439578,-151.0,0.00019128,2]
[334632301,1723367439588,-660.536962,0.00019128,2]
[334632302,1723367439597,-215.122693,0.00019128,2]
[334632303,1723367439608,-215.122693,0.00019128,2]
[334632304,1723367439618,-151.0,0.00019128,2]
[334632305,1723367439628,-151.0,0.00019128,2]
[334632306,1723367439639,-154.76012181,0.00019147,2]
[334632307,1723367439649,-151.0,0.00019167,2]
[334632308,1723367439660,-191.485801,0.00019167,2]
[334632309,1723367439670,-438.868445,0.00019167,2]
[334632310,1723367439680,-438.868445,0.00019167,2]
[334632311,1723367439690,-8836.92013464,0.00019167,2]
[334632312,1723367439700,-186.184626,0.00019177,2]
[334632313,1723367439711,-186.184626,0.00019177,2]
[334632314,1723367439722,-174.906296,0.00019178,2]
[334632315,1723367439731,-175.447948,0.00019178,2]
[334632316,1723367439741,-168.280037,0.00019178,2]
[334632317,1723367439751,-168.569674,0.00019178,2]
[334632318,1723367439761,-507.0,0.00019434,2]
[334632319,1723367439771,-494.6780177,0.00019451,2]
[334632320,1723367439781,-494.6780177,0.00019451,2]
[334632321,1723367439791,-157.95166393,0.00019451,2]
[334632322,1723367439804,-153.0,0.00019452,2]
[334632323,1723367439814,-153.0,0.00019452,2]
[334632324,1723367439823,-153.0,0.00019452,2]
[334632325,1723367439833,-153.0,0.00019452,2]
[334632326,1723367439843,-153.0,0.00019452,2]
[334632327,1723367439853,-307.30419818,0.00019477,2]
[334632328,1723367439864,-76385.1663116,0.0001956,2]
[334632329,1723367439874,-186.184626,0.0001956,2]
[334632330,1723367439883,-186.184626,0.0001956,2]
[334632331,1723367439893,-438.868445,0.0001956,2]
[334632332,1723367439903,-438.868445,0.0001956,2]
[334632333,1723367439914,-480.569976,0.0001956,2]
[334632334,1723367439924,-480.569976,0.0001956,2]
[334632335,1723367439933,-167.001877,0.0001956,2]
[334632336,1723367439943,-167.001877,0.0001956,2]
[334632337,1723367439953,-151.0,0.0001956,2]
[334632338,1723367439963,-151.0,0.0001956,2]
[334632339,1723367439973,-214.73075,0.0001956,2]
[334632340,1723367439983,-452.48,0.0001956,2]
[334632341,1723367439993,-452.48,0.0001956,2]
[334632342,1723367440003,-238.618087,0.0001956,2]
[334632343,1723367440012,-238.618087,0.0001956,2]
[334632344,1723367440022,-650.678465,0.0001956,2]
[334632345,1723367440032,-650.678465,0.0001956,2]
[334632346,1723367440042,-370.662299,0.0001956,2]
[334632347,1723367440056,-370.662299,0.0001956,2]
[334632348,1723367440066,-263.30921,0.0001956,2]
[334632349,1723367440076,-263.30921,0.0001956,2]
[334632350,1723367440087,-641.954911,0.0001956,2]
[334632351,1723367440097,-641.954911,0.0001956,2]
[334632352,1723367440107,-151.0,0.0001956,2]
[334632353,1723367440117,-151.0,0.0001956,2]
[334632354,1723367440128,-660.536962,0.0001956,2]
[334632355,1723367440139,-151.0,0.0001956,2]
[334632356,1723367440150,-660.536962,0.0001956,2]
[334632357,1723367440161,-215.122693,0.0001956,2]
[334632358,1723367440171,-215.122693,0.0001956,2]
[334632359,1723367440181,-151.0,0.0001956,2]
[334632360,1723367440191,-151.0,0.0001956,2]
[334632361,1723367440203,-151.0,0.0001956,2]
[334632362,1723367440213,-151.0,0.0001956,2]
[334632363,1723367440223,-151.0,0.0001956,2]
[334632364,1723367440234,-198.3152288,0.00019768,2]
[334632365,1723367440243,-153.0,0.00019768,2]
[334632366,1723367440253,-153.0,0.00019768,2]
[334632367,1723367440263,-153.0,0.00019768,2]
[334632368,1723367440274,-153.0,0.00019768,2]
[334632369,1723367440286,-153.0,0.00019768,2]
[334632370,1723367440303,-200.0,0.00019773,2]
[334632371,1723367440313,-200.0,0.00019773,2]
[334632372,1723367440323,-200.0,0.00019773,2]
[334632373,1723367440333,-200.0,0.00019773,2]
[334632374,1723367440343,-3220.61008223,0.000198,11]
[334632375,1723367440352,-261371.34531424,0.000198,2]
[334632376,1723367440362,-186.184626,0.000198,2]
[334632377,1723367440374,-186.184626,0.000198,2]
[334632378,1723367440385,-438.868445,0.000198,2]
[334632379,1723367440396,-438.868445,0.000198,2]
[334632380,1723367440406,-480.569976,0.000198,2]
[334632381,1723367440419,-480.569976,0.000198,2]
[334632382,1723367440431,-167.001877,0.000198,2]
[334632383,1723367440442,-167.001877,0.000198,2]
[334632384,1723367440452,-157.160191,0.000198,2]
[334632385,1723367440462,-151.0,0.000198,2]
[334632386,1723367440471,-452.48,0.000198,2]
[334632387,1723367440481,-452.48,0.000198,2]
[334632388,1723367440491,-238.618087,0.000198,2]
[334632389,1723367440501,-238.618087,0.000198,2]
[334632390,1723367440511,-650.678465,0.000198,2]
[334632391,1723367440521,-650.678465,0.000198,2]
[334632392,1723367440530,-370.662299,0.000198,2]
[334632393,1723367440542,-370.662299,0.000198,2]
[334632394,1723367440555,-263.30921,0.000198,2]
[334632395,1723367440566,-263.30921,0.000198,2]
[334632396,1723367440577,-641.954911,0.000198,2]
[334632397,1723367440588,-641.954911,0.000198,2]
[334632398,1723367440599,-151.0,0.000198,2]
[334632399,1723367440610,-151.0,0.000198,2]
[334632400,1723367440623,-660.536962,0.000198,2]
[334632401,1723367440633,-151.0,0.000198,2]
[334632402,1723367440645,-660.536962,0.000198,2]
[334632403,1723367440655,-215.122693,0.000198,2]
[334632404,1723367440664,-215.122693,0.000198,2]
[334632405,1723367440674,-151.0,0.000198,2]
[334632406,1723367440684,-193.924897,0.000198,2]
[334632407,1723367440694,-151.0,0.000198,2]
[334632408,1723367440703,-151.0,0.000198,2]
[334632409,1723367440713,-151.0,0.000198,2]
[334632410,1723367440724,-150.0,0.000199,2]
[334632411,1723367440735,-1011.055116,0.000199,2]
[334632412,1723367440744,-1413.0,0.00019912,2]
[334632413,1723367440755,-223.32245684,0.00019999,2]
[334632414,1723367440766,-2172.41478583,0.0002,2]
[334632415,1723367440775,-294.37791673,0.0002,2]
[334632416,1723367440785,-158.37000166,0.0002,2]
[334632417,1723367440795,-250.0,0.0002,2]
[334632418,1723367440807,-347.40844581,0.0002,2]
[334632419,1723367440816,-1470.20215566,0.0002,2]
[334632420,1723367440825,-156.5036659,0.0002,2]
[334632421,1723367440836,-1000.0,0.0002,3]
[334632422,1723367440849,-46004.61326018,0.0002,2]
[334632423,1723367440859,-2112.43199913,0.0002,2]
[334632424,1723367440869,-166.46278196,0.0002,2]
[334632425,1723367440878,-336.48303043,0.0002,2]
[334632426,1723367440888,-204.47704379,0.0002,2]
[334632427,1723367440898,-556.13837088,0.0002,2]
[334632428,1723367440910,-154.85293282,0.0002,2]
[334632429,1723367440919,-153.0,0.0002,2]
[334632430,1723367440928,-294.6834504,0.0002,2]
[334632431,1723367440938,-480.569976,0.00020042,2]
[334632432,1723367440947,-480.569976,0.00020042,2]
[334632433,1723367440956,-167.001877,0.00020042,2]
[334632434,1723367440966,-167.001877,0.00020042,2]
[334632435,1723367440975,-400.0,0.00020042,2]
[334632436,1723367440985,-151.0,0.00020203,2]
[334632437,1723367440994,-154.3087748,0.00020247,2]
[334632438,1723367441004,-378.4463386,0.00020247,2]
[334632439,1723367441013,-492.86524914,0.0002028,2]
[334632440,1723367441022,-621.87924155,0.00020395,2]
[334632441,1723367441032,-1000.0,0.000204,2]
[334632442,1723367441042,-150.0,0.00020475,2]
[334632443,1723367441053,-151.0,0.00020502,2]
[334632444,1723367441063,-155.0,0.0002054,4]
[334632445,1723367441072,-438.868445,0.0002064,2]
[334632446,1723367441082,-438.868445,0.0002064,2]
[334632447,1723367441091,-186.184626,0.00020721,2]
[334632448,1723367441101,-186.184626,0.00020721,2]
[334632449,1723367441110,-151.0,0.00020721,2]
[334632450,1723367441119,-452.48,0.00020721,2]
[334632451,1723367441128,-452.48,0.00020721,2]
[334632452,1723367441138,-238.618087,0.00020721,2]
[334632453,1723367441147,-238.618087,0.00020721,2]
[334632454,1723367441157,-650.678465,0.00020721,2]
[334632455,1723367441166,-650.678465,0.00020721,2]
[334632456,1723367441175,-370.662299,0.00020721,2]
[334632457,1723367441185,-370.662299,0.00020721,2]
[334632458,1723367441196,-263.30921,0.00020721,2]
[334632459,1723367441210,-263.30921,0.00020721,2]
[334632460,1723367441219,-641.954911,0.00020721,2]
[334632461,1723367441228,-641.954911,0.00020721,2]
[334632462,1723367441237,-151.0,0.00020721,2]
[334632463,1723367441247,-151.0,0.00020721,2]
[334632464,1723367441256,-660.536962,0.00020721,2]
[334632465,1723367441266,-281.520702,0.00020721,2]
[334632466,1723367441275,-660.536962,0.00020721,2]
[334632467,1723367441284,-215.122693,0.00020721,2]
[334632468,1723367441294,-215.122693,0.00020721,2]
[334632469,1723367441304,-151.0,0.00020721,2]
[334632470,1723367441313,-151.0,0.00020721,2]
[334632471,1723367441322,-151.0,0.00020721,2]
[334632472,1723367441331,-151.0,0.00020721,2]
[334632473,1723367441341,-13470.79780803,0.00020721,2]
[334632474,1723367441350,-153.0,0.00020727,2]
[334632475,1723367441360,-153.0,0.00020727,2]
[334632476,1723367441369,-153.0,0.00020727,2]
[334632477,1723367441379,-153.0,0.00020727,2]
[334632478,1723367441389,-153.0,0.00020727,2]
[334632479,1723367441398,-153.0,0.00020727,2]
[334632480,1723367441408,-153.0,0.00020727,2]
[334632481,1723367441418,-151.0,0.00020802,2]
[334632482,1723367441427,-151.0,0.00020802,2]
[334632483,1723367441436,-500.0,0.00020821,3]
[334632484,1723367441446,-500.0,0.00020821,3]
[334632485,1723367441455,-500.0,0.00020821,3]
[334632486,1723367441465,-500.0,0.00020821,3]
[334632487,1723367441474,-500.0,0.00020821,3]
[334632488,1723367441484,-500.0,0.00020821,3]
[334632489,1723367441494,-500.0,0.00020821,3]
[334632490,1723367441503,-500.0,0.00020821,3]
[334632491,1723367441515,-274.87247248,0.00020821,3]
[334632492,1723367441524,-500.0,0.00020821,3]
[334632493,1723367441534,-500.0,0.00020821,3]
[334632494,1723367441544,-500.0,0.00020821,3]
[334632495,1723367441557,-500.0,0.00020821,3]
[334632496,1723367441567,-500.0,0.00020821,3]
[334632497,1723367441576,-500.0,0.00020821,3]
[334632498,1723367441586,-500.0,0.00020821,3]
[334632499,1723367441595,-500.0,0.00020821,3]
[334632500,1723367441605,-500.0,0.00020821,3]
[334632501,1723367441614,-500.0,0.00020821,3]
[334632502,1723367441624,-500.0,0.00020821,3]
[334632503,1723367441634,-500.0,0.00020821,3]
[334632504,1723367441643,-302.94018834,0.00020821,2]
[334632505,1723367442229,-197.05981166,0.00020821,2]
[334632506,1723367442239,-500.0,0.00020821,3]
[334632507,1723367442249,-500.0,0.00020821,3]
[334632508,1723367442258,-500.0,0.00020821,3]
[334632509,1723367442268,-500.0,0.00020821,3]
[334632510,1723367442278,-500.0,0.00020821,3]
[334632511,1723367442287,-500.0,0.00020821,3]
[334632512,1723367442297,-509.94788976,0.00020821,3]
[334632513,1723367442309,-500.0,0.00020821,3]
[334632514,1723367442318,-500.0,0.00020821,3]
[334632515,1723367442328,-515.59029739,0.00020821,3]
[334632516,1723367442337,-500.0,0.00020821,3]
[334632517,1723367442347,-500.0,0.00020821,3]
[334632518,1723367442356,-500.0,0.00020821,3]
[334632519,1723367442366,-512.89556235,0.00020821,3]
[334632520,1723367442375,-500.0,0.00020821,3]
[334632521,1723367442384,-922.13,0.00020821,3]
[334632522,1723367442393,-168.80615838,0.00020821,3]
[334632523,1723367442402,-500.0,0.00020821,3]
[334632524,1723367442411,-500.0,0.00020821,3]
[334632525,1723367442420,-810.7,0.00020821,3]
[334632526,1723367442430,-500.0,0.00020821,3]
[334632527,1723367442441,-326.02395482,0.00020821,3]
[334632528,1723367442450,-500.0,0.00020821,3]
[334632529,1723367442460,-697.41,0.00020821,3]
[334632530,1723367442469,-500.0,0.00020821,3]
[334632531,1723367442479,-500.0,0.00020821,3]
[334632532,1723367442490,-509.40190097,0.00020821,3]
[334632533,1723367442502,-500.0,0.00020821,3]
[334632534,1723367442511,-509.78410977,0.00020821,3]
[334632546,1723367442686,-500.0,0.00020821,3]
[334632548,1723367442696,-500.0,0.00020821,3]
[334632550,1723367442706,-553.86,0.00020821,3]
[334632551,1723367442716,-511.2268226,0.00020821,3]
[334632552,1723367442726,-500.0,0.00020821,3]
[334632553,1723367442736,-500.0,0.00020821,3]
[334632555,1723367442746,-510.63316884,0.00020821,3]
[334632556,1723367442756,-500.0,0.00020821,3]
[334632557,1723367442766,-500.0,0.00020821,3]
[334632558,1723367442775,-514.10645778,0.00020821,3]
[334632559,1723367442785,-639.0525684,0.00020821,3]
[334632560,1723367442795,-500.0,0.00020821,3]
[334632561,1723367442808,-500.0,0.00020821,3]
[334632562,1723367442818,-500.0,0.00020821,3]
[334632563,1723367442828,-500.0,0.00020821,3]
[334632564,1723367442837,-500.0,0.00020821,3]
[334632565,1723367442846,-915.89,0.00020821,3]
[334632566,1723367442855,-826.24,0.00020821,3]
[334632567,1723367442865,-512.44823165,0.00020821,3]
[334632568,1723367442875,-1254.17,0.00020821,3]
[334632569,1723367442884,-937.71,0.00020821,3]
[334632570,1723367442893,-500.0,0.00020821,3]
[334632571,1723367442903,-500.0,0.00020821,3]
[334632572,1723367442912,-500.0,0.00020821,3]
[334632573,1723367442922,-500.0,0.00020821,3]
[334632574,1723367442931,-750.32,0.00020821,3]
[334632575,1723367442940,-512.72763896,0.00020821,3]
[334632576,1723367442949,-500.0,0.00020821,3]
[334632577,1723367442958,-500.0,0.00020821,3]
[334632578,1723367442968,-500.0,0.00020821,3]
[334632579,1723367442978,-815.4,0.00020821,3]
[334632580,1723367442987,-500.0,0.00020821,3]
[334632581,1723367442998,-532.7,0.00020821,3]
[334632582,1723367443009,-556.0,0.00020821,3]
[334632584,1723367443019,-500.0,0.00020821,3]
[334632586,1723367443029,-500.0,0.00020821,3]
[334632587,1723367443039,-500.0,0.00020821,3]
[334632588,1723367443048,-500.0,0.00020821,3]
[334632589,1723367443059,-500.0,0.00020821,3]
[334632590,1723367443069,-500.0,0.00020821,3]
[334632591,1723367443078,-500.0,0.00020821,3]
[334632592,1723367443088,-500.0,0.00020821,3]
[334632593,1723367443097,-500.0,0.00020821,3]
[334632594,1723367443107,-898.61,0.00020821,3]
[334632595,1723367443116,-186.184626,0.00020821,2]
[334632596,1723367443125,-186.184626,0.00020821,2]
[334632597,1723367443135,-186.184626,0.00020821,2]
[334632598,1723367443144,-186.184626,0.00020821,2]
[334632599,1723367443154,-500.0,0.00020821,3]
[334632600,1723367443163,-500.0,0.00020821,3]
[334632601,1723367443172,-186.184626,0.00020821,2]
[334632602,1723367443181,-186.184623,0.00020821,2]
[334632603,1723367443191,-500.0,0.00020821,3]
[334632604,1723367443203,-541.86935323,0.00020821,3]
[334632605,1723367443212,-666.53,0.00020821,3]
[334632606,1723367443221,-500.0,0.00020821,3]
[334632607,1723367443231,-500.0,0.00020821,3]
[334632608,1723367443240,-500.0,0.00020821,3]
[334632609,1723367443250,-500.0,0.00020821,3]
[334632610,1723367443260,-500.0,0.00020821,3]
[334632611,1723367443269,-500.0,0.00020821,3]
[334632612,1723367443279,-500.0,0.00020821,3]
[334632613,1723367443289,-500.0,0.00020821,3]
[334632614,1723367443299,-500.0,0.00020821,3]
[334632615,1723367443310,-500.0,0.00020821,3]
[334632616,1723367443321,-500.0,0.00020821,3]
[334632617,1723367443331,-500.0,0.00020821,3]
[334632618,1723367443340,-500.0,0.00020821,3]
[334632619,1723367443351,-500.0,0.00020821,3]
[334632620,1723367443361,-1496.38,0.00020821,3]
[334632621,1723367443370,-530.39,0.00020821,3]
[334632622,1723367443379,-500.0,0.00020821,3]
[334632623,1723367443389,-500.0,0.00020821,3]
[334632624,1723367443398,-577.6,0.00020821,3]
[334632625,1723367443408,-500.0,0.00020821,3]
[334632626,1723367443418,-519.39226522,0.00020821,3]
[334632627,1723367443427,-500.0,0.00020821,3]
[334632628,1723367443436,-875.22,0.00020821,3]
[334632629,1723367443446,-587.95,0.00020821,3]
[334632630,1723367443456,-500.0,0.00020821,3]
[334632631,1723367443465,-500.0,0.00020821,3]
[334632632,1723367443475,-500.0,0.00020821,3]
[334632633,1723367443485,-1026.11,0.00020821,3]
[334632634,1723367443494,-560.45,0.00020821,3]
[334632635,1723367443503,-682.55,0.00020821,3]
[334632636,1723367443512,-572.42,0.00020821,3]
[334632637,1723367443522,-660.23,0.00020821,3]
[334632638,1723367443531,-500.0,0.00020821,3]
[334632639,1723367443540,-757.17,0.00020821,3]
[334632640,1723367443549,-500.0,0.00020821,3]
[334632641,1723367443559,-438.868445,0.00020821,2]
[334632642,1723367443569,-576.05,0.00020821,2]
[334632643,1723367443579,-438.868437,0.00020821,2]
[334632644,1723367443590,-500.0,0.00020821,3]
[334632645,1723367443601,-673.28,0.00020821,3]
[334632646,1723367443611,-500.0,0.00020821,3]
[334632647,1723367443621,-500.0,0.00020821,3]
[334632648,1723367443631,-500.0,0.00020821,3]
[334632649,1723367443642,-500.0,0.00020821,3]
[334632650,1723367443655,-500.0,0.00020821,3]